bitfinex-derivatives/quotes_ETHF0:USTF0_20250403
["timestamp","ask_amount","ask_price","bid_price","bid_amount"]
[1743647889991,0.00822571,1827.1,1826.9,1.5531]
[1743647890189,1.46682571,1827.1,1826.9,1.5531]
[1743647890789,2.34259571,1827.1,1826.9,1.5531]
[1743647892402,1.46682571,1827.1,1826.9,2.42895]
[1743647892604,2.34260571,1827.1,1826.9,1.5531]
[1743647892794,1.46682571,1827.1,1826.9,2.42894]
[1743647893002,1.46682571,1827.1,1826.9,2.42895]
[1743647893202,1.46682571,1827.1,1826.9,1.5531]
[1743647893501,1.46682571,1827.1,1826.9,3.91503]
[1743647893805,2.34259571,1827.1,1826.9,3.0392]
[1743647894300,1.4179,1827.0,1826.9,3.0392]
[1743647895302,1.4179,1827.0,1826.7,0.00822571]
[1743647895502,1.5939,1826.9,1826.7,0.00822571]
[1743647895696,1.45,1826.8,1826.7,0.00822571]
[1743647896595,2.32591,1826.8,1826.7,0.00822571]
[1743647897502,4.6578,1826.8,1826.0,3.6341485]
[1743647897797,0.87613,1826.4,1826.0,3.2078]
[1743647898003,2.3644,1826.3,1826.0,5.58225]
[1743647898203,2.3644,1826.3,1826.0,4.706]
[1743647898404,3.745,1826.4,1826.3,0.87615]
[1743647898999,3.745,1826.4,1826.2,0.81922571]
[1743647899191,6.13622,1826.4,1826.2,0.00822571]
[1743647899398,2.39125,1826.3,1826.2,0.00822571]
[1743647899902,1.5151,1826.3,1826.2,0.00822571]
[1743647901298,1.5151,1826.3,1826.2,1.41762571]
[1743647902394,2.39125,1826.3,1826.2,0.00822571]
[1743647902600,1.5151,1826.3,1826.2,0.00822571]
[1743647903504,1.5151,1826.3,1826.2,1.50862571]
[1743647903899,1.5151,1826.3,1826.2,2.38482571]
[1743647904096,3.2078,1827.0,1826.3,2.19039]
[1743647904301,1.4308,1826.8,1826.4,1.5004]
[1743647904602,0.87596,1826.7,1826.4,3.17739]
[1743647904803,1.4308,1826.6,1826.4,2.3013]
[1743647905506,2.30682,1826.6,1826.3,1.70514]
[1743647905704,1.6708,1826.5,1826.3,3.20554]
[1743647906006,3.1016,1826.5,1826.3,2.3294]
[1743647906207,3.1016,1826.5,1826.3,3.20553]
[1743647906408,1.4308,1826.4,1826.3,3.20553]
[1743647906802,1.4308,1826.4,1826.3,1.5004]
[1743647907003,2.30691,1826.4,1826.2,0.00822571]
[1743647907505,1.3714,1826.3,1826.2,0.00822571]
[1743647907704,1.3714,1826.3,1826.2,0.88442571]
[1743647907905,2.24755,1826.3,1826.2,0.00822571]
[1743647908303,1.3714,1826.3,1826.2,0.00822571]
[1743647908805,2.24755,1826.3,1826.2,0.00822571]
[1743647909903,5.99255,1826.3,1826.2,0.00822571]
[1743647910108,5.1164,1826.3,1826.2,0.00822571]
[1743647910708,5.1164,1826.3,1826.2,1.43952571]
[1743647911703,5.99255,1826.3,1826.2,0.00822571]
[1743647912208,5.1164,1826.3,1826.2,0.88442571]
[1743647912404,5.1164,1826.3,1826.2,2.31572571]
[1743647912913,5.1164,1826.3,1826.2,1.43952571]
[1743647913212,5.99255,1826.3,1826.2,0.00822571]
[1743647915410,9.20035,1826.3,1826.2,0.00822571]
[1743647915606,9.20035,1826.3,1825.9,3.2078]
[1743647915607,0.8763,1826.0,1825.9,3.2078]
[1743647915805,0.87641,1825.8,1825.7,1.3951]
[1743647916606,2.31311,1825.8,1825.7,1.3951]
[1743647917712,2.31309,1825.8,1825.7,1.3951]
[1743647918209,0.78532571,1825.9,1825.7,1.3951]
[1743647918404,0.00822571,1825.9,1825.8,4.08419]
[1743647918809,0.00822571,1825.9,1825.8,3.2078]
[1743647919010,0.00822571,1825.9,1825.8,4.7092]
[1743647919414,0.88457571,1825.9,1825.8,1.5014]
[1743647920208,0.00822571,1825.9,1825.8,5.58559]
[1743647920613,0.00822571,1825.9,1825.8,4.7092]
[1743647921113,0.88457571,1825.9,1825.8,3.2078]
[1743647921416,0.87644,1825.7,1825.6,5.52892571]
[1743647922511,2.2761,1825.8,1825.6,5.52892571]
[1743647922706,3.15249,1825.8,1825.7,1.4959]
[1743647923420,2.2761,1825.8,1825.7,1.4959]
[1743647923718,4.62957571,1825.9,1825.7,1.4959]
[1743647924313,0.87639,1825.8,1825.7,1.4959]
[1743647925111,6.04949571,1825.9,1825.7,1.4959]
[1743647925818,0.87639,1825.8,1825.7,1.4959]
[1743647926018,0.87639,1825.8,1825.6,4.02752571]
[1743647926207,1.71459,1825.8,1825.6,5.45042571]
[1743647926414,1.71459,1825.8,1825.7,1.4229]
[1743647926824,3.16719,1825.8,1825.7,1.4229]
[1743647927918,2.2908,1825.8,1825.7,1.4229]
[1743647928218,0.00822571,1825.9,1825.8,0.87639]
[1743647928421,2.18981,1826.8,1825.8,0.87639]
[1743647928422,3.2078,1826.3,1826.1,0.87622]
[1743647928627,4.08395,1826.3,1826.2,1.4095]
[1743647930722,0.8762,1826.2,1826.1,0.8029]
[1743647931724,1.6844,1826.2,1826.1,0.8029]
[1743647931926,1.6844,1826.2,1826.0,1.4608]
[1743647931927,0.87625,1826.1,1826.0,1.4608]
[1743647932121,0.8763,1826.0,1825.9,0.8138]
[1743647932529,0.87635,1825.9,1825.8,4.6686]
[1743647932721,0.8763,1826.0,1825.8,1.4608]
[1743647933020,0.87635,1825.9,1825.8,1.4608]
[1743647933220,1.69693,1826.0,1825.8,1.4608]
[1743647933725,0.87635,1825.9,1825.8,1.4608]
[1743647936516,1.69691,1826.0,1825.8,1.4608]
[1743647936811,0.87635,1825.9,1825.8,1.4608]
[1743647937217,1.69692,1826.0,1825.8,1.4608]
[1743647937422,3.745,1826.1,1825.8,4.6686]
[1743647937617,4.62125,1826.1,1825.8,4.6686]
[1743647937820,4.62125,1826.1,1825.9,1.384]
[1743647938116,4.62127,1826.1,1825.9,1.384]
[1743647938320,0.8763,1826.0,1825.9,1.384]
[1743647940823,4.62128,1826.1,1825.9,1.384]
[1743647941116,4.09213571,1826.4,1826.1,0.87621]
[1743647941324,0.87615,1826.3,1826.2,0.8182]
[1743647941515,7.83717571,1826.4,1826.2,0.8182]
[1743647941715,7.83717571,1826.4,1826.3,1.4032]
[1743647942725,0.87615,1826.3,1826.2,0.8182]
[1743647943119,6.96102571,1826.4,1826.1,1.4395]
[1743647943422,6.96102571,1826.4,1825.8,6.9528]
[1743647943423,0.87635,1825.9,1825.8,3.2078]
[1743647944318,0.87635,1825.9,1825.7,2.2842]
[1743647944623,0.87635,1825.9,1825.7,3.16064]
[1743647944915,0.87635,1825.9,1825.8,1.4395]
[1743647946317,2.31031,1826.0,1825.8,1.4395]
[1743647946618,0.87622,1826.2,1825.9,0.87632]
[1743647946815,2.27222,1826.2,1826.0,1.3807]
[1743647947212,0.87626,1826.1,1825.9,0.8512]
[1743647947518,1.396,1826.2,1826.1,0.87625]
[1743647947725,0.00822571,1826.4,1826.3,0.87615]
[1743647948016,0.00822571,1826.4,1826.2,0.87617]
[1743647948218,0.00822571,1826.4,1826.3,2.2319]
[1743647948419,0.00822571,1826.4,1826.3,3.10805]
[1743647948818,0.00822571,1826.4,1826.3,2.2319]
[1743647949615,0.00822571,1826.4,1826.3,6.31585]
[1743647951214,0.00822571,1826.4,1826.3,5.4397]
[1743647951418,0.00822571,1826.4,1826.3,2.2319]
[1743647951615,0.00822571,1826.4,1826.3,5.4397]
[1743647951821,1.44032571,1826.4,1826.3,5.4397]
[1743647953126,1.44032571,1826.4,1826.3,6.31585]
[1743647953322,0.00822571,1826.4,1826.3,6.31585]
[1743647956031,3.2078,1826.8,1826.6,0.87601]
[1743647956232,4.6908,1826.8,1826.7,1.4781]
[1743647956421,4.6908,1826.8,1826.4,0.87608]
[1743647956621,3.1491,1826.7,1826.4,2.35418]
[1743647956821,1.483,1826.6,1826.4,2.35418]
[1743647957617,1.483,1826.6,1826.4,1.4781]
[1743647958229,1.483,1826.6,1826.4,2.3542]
[1743647959132,1.483,1826.6,1826.4,1.4781]
[1743647959632,1.483,1826.6,1826.3,4.94337571]
[1743647960128,1.483,1826.6,1826.4,2.25059]
[1743647960724,2.35904,1826.6,1826.3,4.06722571]
[1743647960926,0.87606,1826.5,1826.3,0.85942571]
[1743647961124,1.5048,1826.4,1826.3,0.00822571]
[1743647961324,1.5048,1826.4,1826.3,0.88437571]
[1743647961525,1.5048,1826.4,1826.3,2.34807571]
[1743647962133,1.5048,1826.4,1826.3,1.47192571]
[1743647962330,1.5048,1826.4,1826.3,4.67972571]
[1743647962628,1.5048,1826.4,1826.3,0.00822571]
[1743647965932,2.38091,1826.4,1826.3,0.00822571]
[1743647966431,1.5048,1826.4,1826.3,0.00822571]
[1743647967332,5.2468,1826.4,1826.3,0.00822571]
[1743647968333,5.2468,1826.4,1826.3,0.88437571]
[1743647968529,3.742,1826.6,1826.4,0.8761]
[1743647968833,6.05091,1826.6,1826.3,2.39605571]
[1743647969032,1.4329,1826.5,1826.3,2.39605571]
[1743647969734,4.88212571,1826.7,1826.6,0.87601]
[1743647969927,0.00822571,1826.7,1826.4,4.7195]
[1743647970129,0.00822571,1826.7,1826.6,0.87601]
[1743647970528,0.00822571,1826.7,1826.6,2.27001]
[1743647971524,0.00822571,1826.7,1826.5,2.52733]
[1743647971730,0.00822571,1826.7,1826.5,3.92133]
[1743647972028,1.45922571,1826.7,1826.6,0.87601]
[1743647972234,1.45922571,1826.7,1826.6,2.27001]
[1743647974529,1.45922571,1826.7,1826.5,2.52733]
[1743647974738,1.45922571,1826.7,1826.5,0.87603]
[1743647974936,1.45922571,1826.7,1826.5,1.3785]
[1743647975235,1.45922571,1826.7,1826.5,2.25455]
[1743647975439,2.33522571,1826.7,1826.4,3.2078]
[1743647975633,1.624,1826.6,1826.4,3.2078]
[1743647975839,3.0486,1826.6,1826.5,2.25456]
[1743647976028,0.00822571,1826.7,1826.6,0.87601]
[1743647976229,0.00822571,1826.7,1826.6,2.25451]
[1743647978939,0.00822571,1826.7,1826.6,5.9044098]
[1743647979128,0.00822571,1826.7,1826.6,5.46231]
[1743647979838,3.741,1827.2,1827.1,0.87577]
[1743647980140,3.2078,1827.4,1827.0,3.2078]
[1743647980433,3.2078,1827.4,1827.3,0.87567]
[1743647980838,4.6208,1827.4,1827.3,0.87567]
[1743647981941,1.413,1827.4,1827.3,0.87567]
[1743647982135,3.2078,1827.8,1827.2,1.5042]
[1743647982136,3.2078,1827.8,1827.5,0.87554]
[1743647982335,6.9488,1827.8,1827.6,0.87552]
[1743647982641,1.4475,1827.7,1827.6,0.87552]
[1743647982843,1.4475,1827.7,1827.6,2.36012]
[1743647983343,1.5909,1827.9,1827.7,0.87548]
[1743647983536,1.5909,1827.9,1827.7,2.36008]
[1743647983737,3.0384,1827.9,1827.7,2.36008]
[1743647984343,1.4475,1827.8,1827.7,2.36008]
[1743647986142,3.2078,1828.0,1827.6,3.2078]
[1743647986143,6.9478,1828.0,1827.6,3.2078]
[1743647986446,2.35361,1827.7,1827.5,0.00822571]
[1743647986745,6.09361,1827.7,1827.5,0.00822571]
[1743647986945,1.4781,1827.6,1827.5,0.00822571]
[1743647987339,3.2078,1827.8,1827.5,0.00822571]
[1743647987644,1.4781,1827.7,1827.5,0.00822571]
[1743647988447,1.4781,1827.7,1827.6,0.87553]
[1743647988744,5.4267,1827.9,1827.7,0.87548]
[1743647988943,1.4759,1827.8,1827.7,0.87548]
[1743647990241,1.4759,1827.8,1827.6,1.4548]
[1743647990448,1.4759,1827.8,1827.6,2.3303]
[1743647990852,2.35133,1827.8,1827.5,0.88377571]
[1743647991044,1.4759,1827.8,1827.6,0.87551]
[1743647991354,1.4759,1827.7,1827.6,0.87551]
[1743647991751,1.4759,1827.7,1827.5,0.00822571]
[1743647991752,1.4759,1827.7,1827.5,0.88377571]
[1743647993040,2.35139,1827.7,1827.5,0.88377571]
[1743647993247,1.4759,1827.7,1827.5,0.88377571]
[1743647993447,1.3839,1827.6,1827.5,0.88377571]
[1743647993853,3.2078,1827.8,1827.5,0.00822571]
[1743647994055,4.5917,1827.8,1827.6,0.8755]
[1743647994254,4.5917,1827.8,1827.7,1.4886]
[1743647995349,1.3839,1827.8,1827.7,1.4886]
[1743647996753,2.25933,1827.8,1827.5,0.88377571]
[1743647996957,2.25933,1827.8,1827.5,2.29997571]
[1743647997148,1.4442,1827.7,1827.6,0.87553]
[1743647997459,1.4442,1827.7,1827.6,2.29173]
[1743647999454,5.4267,1827.9,1827.6,1.4162]
[1743647999652,1.4297,1827.8,1827.6,2.29171]
[1743647999861,1.4297,1827.8,1827.7,1.4277]
[1743648000354,2.30513,1827.8,1827.7,1.4277]
[1743648000557,3.9297,1827.8,1826.9,3.2078]
[1743648000753,0.87571,1827.3,1827.1,0.87577]
[1743648001056,4.08331,1827.7,1827.4,0.87559]
[1743648001254,4.08331,1827.7,1827.1,6.9458]
[1743648001255,1.3821,1827.6,1827.5,0.87558]
[1743648001953,1.69492571,1827.9,1827.5,0.87558]
[1743648001954,5.43292571,1827.9,1827.5,5.4714]
[1743648002149,1.3821,1827.8,1827.5,5.4714]
[1743648002344,1.3821,1827.8,1827.6,2.3297]
[1743648002550,1.3821,1827.8,1827.7,1.4542]
[1743648003355,0.00822571,1827.9,1827.7,2.32964]
[1743648003557,0.00822571,1827.9,1827.8,3.0581]
[1743648004358,0.87547,1827.8,1827.6,1.615]
[1743648004555,1.6566,1827.7,1827.5,4.6623]
[1743648004757,2.2923,1827.7,1827.5,4.6623]
[1743648005257,1.5112,1827.6,1827.5,5.53788]
[1743648005763,1.5112,1827.6,1827.5,4.6623]
[1743648006053,1.5112,1827.6,1827.4,0.00822571]
[1743648006453,1.5112,1827.6,1827.4,1.46272571]
[1743648006657,1.5112,1827.6,1827.4,2.33833571]
[1743648007156,4.54802571,1827.9,1827.5,1.4285]
[1743648007357,5.42343571,1827.9,1827.6,0.8124]
[1743648007658,3.17446,1827.8,1827.6,0.8124]
[1743648007861,2.36799,1827.7,1827.5,1.4285]
[1743648008053,2.36803,1827.6,1827.4,0.00822571]
[1743648008360,3.1178,1827.5,1827.4,0.00822571]
[1743648009250,3.99338,1827.5,1827.4,0.00822571]
[1743648011455,3.1178,1827.5,1827.4,0.00822571]
[1743648011662,3.2078,1827.8,1827.4,0.00822571]
[1743648011961,9.1405,1827.8,1827.7,0.87548]
[1743648012150,4.6238,1827.8,1827.7,0.87548]
[1743648012660,0.00822571,1827.9,1827.8,0.87543]
[1743648013761,4.6159,1828.3,1828.0,0.87531]
[1743648013966,4.6159,1828.3,1828.1,1.4653]
[1743648015254,1.4081,1828.3,1828.1,2.34057]
[1743648015663,1.4081,1828.3,1828.2,2.34054]
[1743648016664,4.5654,1828.6,1828.3,0.87519]
[1743648016867,1.5136,1828.5,1828.4,1.4955]
[1743648017265,1.5136,1828.5,1828.4,2.37065]
[1743648017466,1.5136,1828.5,1828.4,1.4955]
[1743648017865,3.2078,1828.7,1828.5,0.87506]
[1743648018061,3.2078,1828.7,1828.6,1.4955]
[1743648018267,4.61193,1828.9,1828.6,1.4955]
[1743648018268,1.5136,1828.8,1828.6,2.37055]
[1743648018668,1.5136,1828.8,1828.7,2.3705]
[1743648019065,1.5136,1828.8,1828.7,1.4955]
[1743648020068,2.38856,1828.8,1828.5,0.87507]
[1743648020570,1.3935,1828.7,1828.5,0.87507]
[1743648020765,3.2078,1828.9,1828.4,1.4379]
[1743648020766,3.2078,1828.9,1828.8,0.87496]
[1743648020965,3.2078,1829.1,1829.0,0.87486]
[1743648021868,1.3935,1829.2,1829.1,0.87481]
[1743648022169,23.40066953,1829.5,1829.1,3.2078]
[1743648022364,23.40066953,1829.5,1829.2,3.17394]
[1743648022564,1.4214,1829.4,1829.2,3.17394]
[1743648023062,1.4214,1829.4,1829.2,0.87474]
[1743648023267,2.254,1829.4,1829.1,3.2078]
[1743648023468,23.40066953,1829.5,1829.4,0.87467]
[1743648023668,23.40066953,1829.5,1829.3,4.08249]
[1743648023970,0.7991,1829.7,1829.3,4.08249]
[1743648023971,0.7991,1829.7,1829.4,2.32617]
[1743648024173,2.2205,1829.7,1829.5,1.4515]
[1743648025777,2.2205,1829.7,1829.3,4.090713]
[1743648025980,1.4883,1829.6,1829.3,5.496513]
[1743648026174,5.5707,1829.6,1829.3,0.008203]
[1743648026371,0.7842,1829.5,1829.3,0.008203]
[1743648026571,1.4883,1829.4,1829.3,0.008203]
[1743648028671,1.4883,1829.4,1829.3,0.882923]
[1743648029279,0.7842,1829.5,1829.4,0.87467]
[1743648029478,2.1599,1829.5,1829.4,2.39147]
[1743648029677,2.1599,1829.5,1829.4,1.5168]
[1743648029977,2.1599,1829.5,1829.3,0.008203]
[1743648030180,1.3757,1829.4,1829.3,0.008203]
[1743648030979,1.3757,1829.4,1828.5,3.2078]
[1743648030980,10.8175,1829.4,1828.5,3.2078]
[1743648031176,0.87489,1829.0,1828.6,0.87503]
[1743648031481,2.9745,1828.9,1828.6,0.87503]
[1743648031671,4.8069,1829.6,1828.5,4.7037]
[1743648031672,6.9418,1829.3,1828.5,4.7037]
[1743648031872,7.81655,1829.3,1828.9,0.87488]
[1743648032075,1.4109,1829.2,1828.9,0.87488]
[1743648032271,0.00812727,1829.1,1828.7,1.504103]
[1743648032580,4.86917727,1829.1,1828.7,2.379093]
[1743648032782,1.4109,1829.0,1828.8,0.87495]
[1743648032982,1.4109,1829.0,1828.8,2.37085]
[1743648033175,1.4109,1829.0,1828.8,1.4959]
[1743648033584,1.4109,1829.0,1828.9,0.87491]
[1743648033983,1.4109,1829.0,1828.9,2.37081]
[1743648034877,1.4109,1829.0,1828.8,3.2078]
[1743648035388,2.262,1829.0,1828.8,3.2078]
[1743648035788,1.4713,1828.9,1828.8,0.87496]
[1743648036384,0.8511,1829.0,1828.7,0.008203]
[1743648036689,2.3224,1829.0,1828.8,0.87492]
[1743648036880,2.3224,1829.0,1828.7,0.883173]
[1743648037182,1.4713,1828.9,1828.7,0.883173]
[1743648037586,1.4713,1828.9,1828.8,0.87496]
[1743648038981,1.4713,1828.9,1828.7,0.883173]
[1743648039883,1.4713,1828.9,1828.8,0.87496]
[1743648040587,1.4713,1828.9,1828.7,0.883183]
[1743648041092,7.81676,1828.8,1828.7,0.008203]
[1743648041590,0.87505,1828.6,1828.2,1.6141]
[1743648041790,0.7704,1828.5,1828.3,0.87518]
[1743648042090,2.2033,1828.5,1828.3,0.87518]
[1743648042288,2.2033,1828.5,1828.3,4.08298]
[1743648042485,2.2033,1828.5,1828.3,3.2078]
[1743648042685,2.2033,1828.5,1828.2,2.48932]
[1743648042686,1.4329,1828.4,1828.2,0.008203]
[1743648043390,4.5044,1828.5,1828.2,3.216003]
[1743648043590,4.5044,1828.5,1828.2,0.883423]
[1743648043786,1.3878,1828.4,1828.2,0.883423]
[1743648043994,1.3878,1828.4,1828.2,0.008203]
[1743648044188,2.26296,1828.4,1828.2,0.008203]
[1743648044489,1.3878,1828.4,1828.2,0.008203]
[1743648044681,4.5044,1828.5,1828.4,0.87515]
[1743648044882,4.5044,1828.5,1828.3,0.87517]
[1743648045083,5.37952,1828.5,1828.2,0.008203]
[1743648045294,2.26295,1828.4,1828.2,0.008203]
[1743648045588,1.3878,1828.3,1828.2,0.883443]
[1743648045991,4.5044,1828.5,1828.4,0.87515]
[1743648046295,4.5044,1828.5,1828.3,0.87517]
[1743648046498,1.4865,1828.4,1828.3,0.87517]
[1743648047188,1.4865,1828.4,1828.2,4.091233]
[1743648047384,1.4865,1828.4,1828.2,0.008203]
[1743648047588,1.4865,1828.4,1828.3,0.87519]
[1743648047791,0.7704,1828.5,1828.3,0.87517]
[1743648047986,2.2569,1828.5,1828.2,0.883423]
[1743648048193,3.13201,1828.5,1828.2,0.008203]
[1743648048394,2.36165,1828.4,1828.2,0.008203]
[1743648048691,2.36169,1828.3,1828.2,0.008203]
[1743648049000,10.11749,1828.3,1828.2,0.008203]
[1743648050996,6.38249,1828.3,1828.2,0.008203]
[1743648051184,10.11749,1828.3,1828.2,0.008203]
[1743648051888,10.11749,1828.3,1827.9,0.87537]
[1743648051889,0.87536,1828.0,1827.6,3.2078]
[1743648052089,2.1783,1827.9,1827.8,0.87543]
[1743648052388,2.1783,1827.9,1827.7,0.87545]
[1743648052598,2.1783,1827.9,1827.8,0.87543]
[1743648053297,3.743203,1828.0,1827.8,0.87543]
[1743648053697,5.181603,1828.0,1827.9,1.4322]
[1743648054197,5.181603,1828.0,1827.9,2.2338]
[1743648054397,1.446603,1828.0,1827.9,2.2338]
[1743648055395,1.446603,1828.0,1827.9,1.4322]
[1743648055795,2.321943,1828.0,1827.9,1.4322]
[1743648055995,1.446603,1828.0,1827.9,1.4322]
[1743648058396,0.87543,1827.8,1827.7,0.008203]
[1743648058599,4.61043,1827.8,1827.7,0.008203]
[1743648059294,5.99643,1827.8,1827.7,0.008203]
[1743648059798,5.121,1827.8,1827.7,0.008203]
[1743648060404,5.99643,1827.8,1827.7,0.008203]
[1743648060596,5.121,1827.8,1827.7,2.295583]
[1743648060997,3.735,1827.8,1827.7,2.295583]
[1743648061192,0.8168,1827.9,1827.7,2.295583]
[1743648061396,0.87543,1827.8,1827.7,0.008203]
[1743648061801,2.28933,1827.8,1827.7,1.404403]
[1743648062103,1.4139,1827.8,1827.7,1.404403]
[1743648062307,0.87543,1827.8,1827.7,1.404403]
[1743648062506,2.28933,1827.8,1827.7,1.404403]
[1743648065307,0.87543,1827.8,1827.7,1.404403]
[1743648065807,6.90142,1827.9,1827.7,1.404403]
[1743648066009,0.87543,1827.8,1827.7,1.404403]
[1743648066810,6.90141,1827.9,1827.7,1.404403]
[1743648067007,1.4742,1827.8,1827.7,1.404403]
[1743648067805,2.34963,1827.8,1827.7,0.008203]
[1743648068007,5.55743,1827.8,1827.7,0.008203]
[1743648068399,4.682,1827.8,1827.7,0.008203]
[1743648068801,3.2078,1827.8,1827.7,0.883683]
[1743648069007,4.5518,1827.9,1827.7,0.008203]
[1743648069305,4.5518,1827.9,1827.7,1.438703]
[1743648069306,5.42719,1827.9,1827.7,1.438703]
[1743648069611,1.3851,1827.8,1827.7,1.438703]
[1743648070004,1.3851,1827.8,1827.7,2.314183]
[1743648071416,1.3851,1827.8,1827.7,1.438703]
[1743648071613,5.46833,1827.8,1827.7,0.008203]
[1743648075911,1.3851,1827.8,1827.7,0.883683]
[1743648076216,3.736,1827.8,1827.7,0.883683]
[1743648078015,3.736,1827.8,1827.7,0.008203]
[1743648078218,3.736,1827.8,1827.7,1.445403]
[1743648078515,3.736,1827.8,1827.7,2.243303]
[1743648079917,6.07373,1827.8,1827.7,2.243303]
[1743648080411,6.07373,1827.8,1827.7,0.008203]
[1743648080713,9.28153,1827.8,1827.7,0.008203]
[1743648082620,6.07373,1827.8,1827.7,0.008203]
[1743648083309,9.28153,1827.8,1827.7,0.008203]
[1743648085620,9.28153,1827.8,1827.7,0.883683]
[1743648085621,5.1983,1827.8,1827.7,0.883683]
[1743648086319,5.1983,1827.8,1827.7,0.008203]
[1743648087122,9.28153,1827.8,1827.7,0.008203]
[1743648088619,0.87562,1827.5,1827.3,1.6201]
[1743648088819,1.69343,1827.4,1827.2,1.4658]
[1743648089021,1.69343,1827.4,1827.1,0.87575]
[1743648089022,0.87572,1827.2,1827.1,1.6638]
[1743648089818,2.37192,1827.2,1827.1,1.6638]
[1743648090019,0.87577,1827.1,1827.0,1.433503]
[1743648090220,2.37197,1827.1,1827.0,1.433503]
[1743648090817,1.4962,1827.1,1827.0,2.309323]
[1743648091018,2.37197,1827.1,1827.0,0.008203]
[1743648092011,2.37197,1827.1,1826.4,4.08387]
[1743648092012,1.4962,1827.1,1826.4,4.08387]
[1743648092219,0.876,1826.7,1826.5,1.4319]
[1743648092422,0.87594,1826.8,1826.5,2.30795]
[1743648092625,6.8647,1826.9,1826.6,1.4319]
[1743648092825,0.87593,1826.8,1826.6,1.4319]
[1743648093018,2.31743,1826.8,1826.6,4.6397]
[1743648093217,2.31743,1826.8,1826.6,1.4319]
[1743648093720,0.87596,1826.7,1826.6,1.4319]
[1743648093916,2.31744,1826.8,1826.6,1.4319]
[1743648094118,0.87596,1826.7,1826.6,1.4319]
[1743648094325,1.4415,1826.7,1826.6,1.4319]
[1743648095518,6.033503,1826.9,1826.6,2.30789]
[1743648095920,6.909383,1826.9,1826.7,1.451]
[1743648096117,0.87591,1826.8,1826.7,1.451]
[1743648097828,3.744203,1826.9,1826.7,1.451]
[1743648098128,0.008203,1826.9,1826.8,0.817]
[1743648098323,0.008203,1826.9,1826.8,3.0761]
[1743648098723,0.87592,1826.8,1826.6,3.2078]
[1743648098929,0.87592,1826.8,1826.6,4.6223]
[1743648099129,1.4578,1826.7,1826.6,4.6223]
[1743648099723,6.06976,1826.7,1826.6,3.2078]
[1743648099922,0.87601,1826.6,1826.5,0.008203]
[1743648100122,2.33381,1826.6,1826.5,0.008203]
[1743648102628,5.54161,1826.6,1826.5,0.008203]
[1743648107429,5.54161,1826.6,1826.0,2.53785]
[1743648107430,0.87625,1826.1,1826.0,1.6616]
[1743648107626,0.87625,1826.1,1826.0,0.8446]
[1743648108020,2.29855,1826.1,1826.0,0.8446]
[1743648109428,3.2078,1826.3,1826.0,0.8446]
[1743648109731,3.737,1826.3,1826.1,2.32544]
[1743648109929,3.737,1826.3,1826.2,2.2253]
[1743648110330,2.34074,1826.4,1826.2,2.2253]
[1743648110331,1.6486,1826.5,1826.2,2.2253]
[1743648110524,3.737,1826.4,1826.3,1.454]
[1743648110833,4.61311,1826.4,1826.3,1.454]
[1743648112426,3.2078,1826.6,1826.4,0.8761]
[1743648112628,0.87597,1826.7,1826.5,2.33003]
[1743648112924,4.61297,1826.7,1826.6,1.454]
[1743648113328,0.008203,1826.9,1826.8,0.87591]
[1743648113727,0.008203,1826.9,1826.8,2.27851]
[1743648113928,0.008203,1826.9,1826.8,3.12241]
[1743648114130,0.008203,1826.9,1826.8,2.2465]
[1743648114320,0.008203,1826.9,1826.7,1.68283]
[1743648114321,0.87598,1826.7,1826.4,4.08388]
[1743648114526,7.82075,1826.8,1826.5,0.8439]
[1743648114726,7.82075,1826.8,1826.6,1.4026]
[1743648117029,4.61295,1826.8,1826.6,1.4026]
[1743648117330,0.87596,1826.7,1826.6,1.4026]
[1743648117526,3.12926,1826.7,1826.6,1.4026]
[1743648118229,3.12926,1826.7,1826.4,4.0147]
[1743648118230,0.87601,1826.6,1826.4,3.2078]
[1743648118431,0.87615,1826.3,1826.2,3.2078]
[1743648119330,2.30375,1826.3,1826.2,3.2078]
[1743648119639,1.4276,1826.3,1826.2,3.2078]
[1743648119833,2.30375,1826.3,1826.2,3.2078]
[1743648120638,1.4276,1826.3,1826.2,3.2078]
[1743648120936,1.4276,1826.3,1826.2,4.648]
[1743648121138,2.30375,1826.3,1826.2,4.648]
[1743648121338,1.4276,1826.3,1826.2,4.648]
[1743648121741,2.30375,1826.3,1826.2,1.4402]
[1743648122638,2.30375,1826.3,1826.0,2.51717]
[1743648122840,5.1661,1826.2,1826.0,3.082]
[1743648123234,1.4301,1826.1,1826.0,3.082]
[1743648123435,1.4301,1826.1,1826.0,3.9583]
[1743648123637,1.4301,1826.1,1826.0,3.082]
[1743648124036,1.4301,1826.1,1826.0,3.9583]
[1743648124237,1.4301,1826.1,1826.0,3.082]
[1743648124434,1.4301,1826.1,1826.0,3.9583]
[1743648124931,1.4301,1826.1,1826.0,3.082]
[1743648125437,4.08378,1826.7,1826.0,7.77268]
[1743648125641,4.08378,1826.7,1826.4,0.87606]
[1743648125838,3.737,1826.8,1826.7,0.87596]
[1743648126142,6.953003,1826.9,1826.7,0.87596]
[1743648126341,3.745203,1826.9,1826.8,1.4931]
[1743648126544,3.745203,1826.9,1826.8,2.3071]
[1743648127844,4.621073,1826.9,1826.8,1.4931]
[1743648128143,6.018873,1826.9,1826.8,1.4931]
[1743648128338,5.143003,1826.9,1826.8,2.36901]
[1743648128539,3.745203,1826.9,1826.8,2.36901]
[1743648130947,0.008203,1826.9,1826.8,2.36901]
[1743648141949,0.8418,1827.3,1827.2,0.87572]
[1743648142249,1.506,1827.5,1827.4,0.87563]